bitfinex-derivatives/quotes_BTCF0:USTF0_20241110
["timestamp","ask_amount","ask_price","bid_price","bid_amount"]
[1731208801453,0.3608,77436.0,77433.0,0.032267]
[1731208802361,0.0467,77439.0,77433.0,0.032267]
[1731208805161,0.0467,77439.0,77436.0,0.032266]
[1731208805364,0.36148,77443.0,77431.0,0.13034875]
[1731208805561,0.36148,77443.0,77441.0,0.032264]
[1731208805562,0.3608,77443.0,77441.0,0.032264]
[1731208806366,0.05,77450.0,77441.0,0.032264]
[1731208807872,0.05,77450.0,77441.0,0.04790135]
[1731208809185,0.3608,77451.0,77441.0,0.04790135]
[1731208809382,0.3608,77451.0,77433.0,0.03865282]
[1731208809383,0.13515964,77447.0,77433.0,0.03865282]
[1731208809671,0.3608,77444.0,77434.0,0.146707]
[1731208811168,0.3608,77444.0,77434.0,0.032267]
[1731208811371,0.3608,77444.0,77435.0,0.11444]
[1731208813980,0.393063,77444.0,77435.0,0.11444]
[1731208814177,0.393063,77444.0,77436.0,0.11444]
[1731208814772,0.3608,77437.0,77436.0,0.11444]
[1731208815169,0.3608,77437.0,77432.0,0.06491137]
[1731208815367,0.3608,77437.0,77433.0,0.11444]
[1731208819460,0.3608,77437.0,77436.0,0.13515964]
[1731208821671,0.36156,77452.0,77437.0,0.032266]
[1731208821875,0.3608,77452.0,77443.0,0.13515964]
[1731208822060,0.3608,77452.0,77444.0,0.11428]
[1731208822270,0.04140205,77451.0,77444.0,0.16178]
[1731208822465,0.04140205,77450.0,77444.0,0.0475]
[1731208822733,0.36148,77452.0,77448.0,0.16742064]
[1731208822734,0.3608,77452.0,77448.0,0.16742064]
[1731208822906,0.36148,77452.0,77448.0,0.16742064]
[1731208823272,0.3608,77452.0,77448.0,0.032261]
[1731208824587,0.3608,77452.0,77448.0,0.04808323]
[1731208825571,0.3608,77452.0,77448.0,0.01582223]
[1731208825766,0.3608,77452.0,77449.0,0.11428]
[1731208825963,0.3608,77452.0,77445.0,0.05]
[1731208825964,0.3608,77452.0,77445.0,0.01605358]
[1731208826165,0.032263,77445.0,77434.0,0.032267]
[1731208826372,0.032264,77442.0,77435.0,0.11428]
[1731208826972,0.4022,77444.0,77435.0,0.11428]
[1731208827179,0.4022,77444.0,77435.0,0.24943964]
[1731208827180,0.3608,77444.0,77435.0,0.24943964]
[1731208827374,0.3608,77444.0,77438.0,0.032266]
[1731208829773,0.3608,77444.0,77436.0,0.03865282]
[1731208830003,0.3608,77444.0,77439.0,0.032265]
[1731208830896,0.3608,77444.0,77441.0,0.13515964]
[1731208831068,0.3608,77444.0,77443.0,0.032264]
[1731208833780,0.3608,77444.0,77443.0,0.146544]
[1731208834468,0.3608,77444.0,77443.0,0.032264]
[1731208834685,0.3608,77444.0,77443.0,0.146544]
[1731208835292,0.36156,77451.0,77443.0,0.146544]
[1731208835293,0.36156,77451.0,77443.0,0.15293282]
[1731208835577,0.3608,77451.0,77449.0,0.13515964]
[1731208836283,0.032258,77457.0,77450.0,0.032261]
[1731208837173,0.04181888,77456.0,77450.0,0.032261]
[1731208837410,0.032258,77457.0,77450.0,0.032261]
[1731208837411,0.04181888,77455.0,77450.0,0.032261]
[1731208837580,0.04181888,77454.0,77450.0,0.032261]
[1731208837782,0.04181888,77453.0,77450.0,0.032261]
[1731208837980,0.032258,77457.0,77450.0,0.032261]
[1731208837981,0.04181888,77452.0,77450.0,0.032261]
[1731208838283,0.032258,77457.0,77450.0,0.032261]
[1731208838472,0.04175549,77456.0,77453.0,0.032259]
[1731208838669,0.04175549,77455.0,77454.0,0.11428]
[1731208838874,0.04175549,77459.0,77454.0,0.11428]
[1731208839080,0.04175549,77458.0,77454.0,0.11428]
[1731208839382,0.04175549,77457.0,77454.0,0.11428]
[1731208839585,0.04175549,77456.0,77454.0,0.11428]
[1731208839884,0.04175549,77455.0,77454.0,0.11428]
[1731208840381,0.36148,77460.0,77454.0,0.11428]
[1731208840572,0.04183624,77459.0,77454.0,0.11428]
[1731208840876,0.04183624,77458.0,77454.0,0.1305178]
[1731208841074,0.36148,77460.0,77454.0,0.1305178]
[1731208841271,0.04190399,77459.0,77454.0,0.1627768]
[1731208841476,0.04190399,77458.0,77454.0,0.1627768]
[1731208841676,0.36148,77460.0,77454.0,0.1627768]
[1731208841883,0.04191304,77459.0,77454.0,0.1627768]
[1731208842180,0.04190982,77458.0,77454.0,0.1627768]
[1731208842373,0.36148,77460.0,77454.0,0.1627768]
[1731208842571,0.04187152,77459.0,77454.0,0.1627768]
[1731208842779,0.04187152,77458.0,77454.0,0.1627768]
[1731208842980,0.36148,77460.0,77454.0,0.1627768]
[1731208843180,0.04188889,77459.0,77454.0,0.1627768]
[1731208843486,0.04188889,77458.0,77454.0,0.1627768]
[1731208843780,0.3608,77460.0,77454.0,0.1627768]
[1731208844192,0.3608,77457.0,77454.0,0.1627768]
[1731208845174,0.3608,77457.0,77456.0,0.032258]
[1731208845783,0.041,77465.0,77455.0,0.24943964]
[1731208846081,0.3608,77466.0,77464.0,0.032255]
[1731208846384,0.3608,77466.0,77465.0,0.11428]
[1731208848324,0.3608,77466.0,77465.0,0.1302902]
[1731208850895,0.3608,77466.0,77465.0,0.0160102]
[1731208851082,0.3608,77466.0,77465.0,0.11408]
[1731208852300,0.3608,77466.0,77465.0,0.146334]
[1731208853080,0.3608,77466.0,77465.0,0.11408]
[1731208855283,0.3608,77466.0,77465.0,0.12955403]
[1731208856090,0.3608,77466.0,77465.0,0.11408]
[1731208858288,0.17875964,77475.0,77465.0,0.11408]
[1731208858289,0.3608,77474.0,77465.0,0.11408]
[1731208858787,0.17875964,77475.0,77465.0,0.11408]
[1731208859003,0.53955964,77475.0,77465.0,0.11408]
[1731208859193,0.53955964,77475.0,77465.0,0.146334]
[1731208859679,0.53955964,77475.0,77466.0,0.032254]
[1731208860080,0.4044,77475.0,77466.0,0.032254]
[1731208860281,0.4044,77475.0,77465.0,0.11408]
[1731208860488,0.4044,77475.0,77468.0,0.032253]
[1731208860789,0.3608,77475.0,77469.0,0.032253]
[1731208861584,0.13515964,77481.0,77470.0,0.071252]
[1731208862505,0.3608,77475.0,77470.0,0.071252]
[1731208862891,0.3608,77475.0,77470.0,0.039]
[1731208867605,0.032251,77472.0,77471.0,0.11408]
[1731208868596,0.13515964,77474.0,77461.0,0.01600577]
[1731208868801,0.13515964,77474.0,77460.0,0.0423]
[1731208868802,0.3608,77464.0,77462.0,0.11408]
[1731208869187,0.3608,77464.0,77455.0,0.43396]
[1731208869188,0.032256,77463.0,77455.0,0.43396]
[1731208869419,0.032256,77463.0,77456.0,0.11408]
[1731208869591,0.36156,77464.0,77455.0,0.4501923]
[1731208869800,0.032257,77459.0,77456.0,0.11408]
[1731208870103,0.032257,77459.0,77457.0,0.11408]
[1731208870303,0.08,77463.0,77455.0,0.4512323]
[1731208870601,0.36156,77464.0,77460.0,0.032256]
[1731208870803,0.3608,77464.0,77460.0,0.032256]
[1731208871813,0.032255,77463.0,77461.0,0.11408]
[1731208872103,0.3608,77464.0,77455.0,0.4512323]
[1731208872104,0.36148,77464.0,77455.0,0.4512323]
[1731208872295,0.3608,77464.0,77451.0,0.03851999]
[1731208872492,0.3608,77464.0,77448.0,0.03851999]
[1731208872493,0.03226,77452.0,77448.0,0.03851999]
[1731208873002,0.03226,77452.0,77447.0,0.0019365]
[1731208873003,0.3608,77449.0,77447.0,0.04045649]
[1731208873204,0.3608,77449.0,77447.0,0.0179722]
[1731208873553,0.393061,77449.0,77447.0,0.0179722]
[1731208873707,0.393061,77449.0,77447.0,0.0019365]
[1731208873902,0.03958549,77448.0,77447.0,0.0019365]
[1731208875503,0.393741,77449.0,77447.0,0.0019365]
[1731208875701,0.03947094,77448.0,77447.0,0.0019365]
[1731208876007,0.23233397,77448.0,77447.0,0.0019365]
[1731208876507,0.032267,77436.0,77433.0,0.11408]
[1731208877500,0.36148,77437.0,77434.0,0.032267]
[1731208877697,0.3608,77437.0,77434.0,0.032267]
[1731208878299,0.3608,77437.0,77435.0,0.11392]
[1731208879314,0.032266,77436.0,77434.0,0.11392]
[1731208879708,0.032268,77432.0,77431.0,0.11392]
[1731208880699,0.032268,77432.0,77426.0,0.2345444]
[1731208880908,0.36156,77437.0,77428.0,0.03227]
[1731208881127,0.3608,77437.0,77436.0,0.13515964]
[1731208882898,0.3608,77437.0,77436.0,0.11392]
[1731208885107,0.393066,77437.0,77436.0,0.11392]
[1731208885504,0.3608,77437.0,77436.0,0.11392]
[1731208890110,0.3608,77437.0,77432.0,0.01586437]
[1731208890313,0.3608,77437.0,77433.0,0.11392]
[1731208890818,0.032266,77438.0,77433.0,0.11392]
[1731208890819,0.3608,77434.0,77433.0,0.11392]
[1731208893329,0.3608,77434.0,77433.0,0.146188]
[1731208894225,0.01784543,77485.0,77434.0,0.3874]
[1731208894411,0.01784543,77485.0,77467.0,0.3608]
[1731208894613,0.01784543,77485.0,77468.0,0.11392]
[1731208895418,0.01784543,77485.0,77481.0,0.52820764]
[1731208895631,0.01784543,77485.0,77481.0,0.64212764]
[1731208896112,0.01784543,77485.0,77481.0,0.506968]
[1731208899016,0.01784543,77485.0,77481.0,0.52276109]
[1731208902030,0.01784543,77485.0,77481.0,0.40884109]
[1731208902265,0.01784543,77485.0,77481.0,0.52272109]
[1731208903021,0.01784543,77485.0,77481.0,0.3608]
[1731208903221,0.01784543,77485.0,77481.0,0.11388]
[1731208904029,0.01784543,77485.0,77479.0,0.02581545]
[1731208904240,0.01784543,77485.0,77481.0,0.11388]
[1731208904738,0.05874543,77485.0,77481.0,0.11388]
[1731208905731,0.05874543,77485.0,77476.0,0.032249]
[1731208906031,0.05874543,77485.0,77477.0,0.11388]
[1731208906436,0.05874543,77485.0,77477.0,0.13969675]
[1731208907636,0.05874543,77485.0,77477.0,0.11388]
[1731208910144,0.05108974,77483.0,77477.0,0.11388]
[1731208910322,0.18624938,77483.0,77477.0,0.11388]
[1731208911824,0.18624938,77483.0,77474.0,0.3608]
[1731208912433,0.15400238,77483.0,77474.0,0.3608]
[1731208912625,0.04887049,77482.0,77474.0,0.3608]
[1731208914336,0.04887049,77482.0,77475.0,0.11368]
[1731208915930,0.01662249,77482.0,77475.0,0.11368]
[1731208917241,0.00172009,77479.0,77475.0,0.11368]
[1731208918136,0.00172009,77477.0,77475.0,0.11368]
[1731208919243,0.01662249,77482.0,77475.0,0.11368]
[1731208919534,0.01662249,77482.0,77481.0,0.032248]
[1731208920036,0.01662249,77482.0,77475.0,0.11368]
[1731208921340,0.032248,77481.0,77475.0,0.11368]
[1731208923241,0.032248,77481.0,77476.0,0.11368]
[1731208924238,0.032248,77481.0,77478.0,0.03835395]
[1731208927048,0.032248,77481.0,77476.0,0.11368]
[1731208927945,0.01662249,77482.0,77476.0,0.11368]
[1731208929743,0.03998629,77481.0,77476.0,0.11368]
[1731208929933,0.01662249,77482.0,77476.0,0.11368]
[1731208930140,0.04004822,77481.0,77476.0,0.11368]
[1731208930335,0.01662249,77482.0,77476.0,0.11368]
[1731208930544,0.032249,77478.0,77476.0,0.11368]
[1731208930944,0.03982405,77477.0,77476.0,0.11368]
[1731208931332,0.03982405,77477.0,77467.0,0.3608]
[1731208931333,0.032252,77472.0,77467.0,0.3608]
[1731208931535,0.0396673,77471.0,77467.0,0.3608]
[1731208931754,0.0396673,77470.0,77467.0,0.3608]
[1731208931951,0.03953599,77469.0,77467.0,0.3608]
[1731208932143,0.03956625,77468.0,77467.0,0.3608]
[1731208932541,0.09885785,77471.0,77467.0,0.3608]
[1731208932741,0.03954987,77470.0,77467.0,0.3608]
[1731208932947,0.09885785,77471.0,77465.0,0.11368]
[1731208932948,0.03954987,77469.0,77465.0,0.11368]
[1731208933143,0.09885785,77471.0,77451.0,0.79484]
[1731208933144,0.49595964,77466.0,77453.0,0.03835395]
[1731208933347,0.49595964,77466.0,77455.0,0.11372]
[1731208933348,0.13515964,77465.0,77455.0,0.11372]
[1731208933552,0.3608,77466.0,77455.0,0.11372]
[1731208933849,0.03921534,77465.0,77460.0,0.13515964]
[1731208934051,0.3608,77476.0,77464.0,0.03835395]
[1731208934252,0.3608,77476.0,77467.0,0.032253]
[1731208937151,0.3608,77476.0,77467.0,0.0483161]
[1731208937754,0.03225,77475.0,77466.0,0.39915395]
[1731208937973,0.03225,77475.0,77467.0,0.11356]
[1731208939456,0.49663964,77476.0,77466.0,0.3608]
[1731208939457,0.13515964,77469.0,77466.0,0.3608]
[1731208939752,0.3608,77468.0,77464.0,0.11356]
[1731208939964,0.032254,77467.0,77464.0,0.11356]
[1731208940251,0.3608,77468.0,77456.0,0.03835395]
[1731208940446,0.032256,77463.0,77455.0,0.03835395]
[1731208940652,0.083,77462.0,77455.0,0.15191395]
[1731208940861,0.083,77462.0,77455.0,0.11356]
[1731208942347,0.115256,77462.0,77455.0,0.11356]
[1731208942546,0.115256,77462.0,77452.0,0.02582191]
[1731208942946,0.115256,77462.0,77453.0,0.11356]
[1731208943459,0.115256,77462.0,77447.0,0.21805011]
[1731208943460,0.13515964,77460.0,77447.0,0.00193652]
[1731208943765,0.03226,77453.0,77447.0,0.00193652]
[1731208944548,0.40412,77461.0,77453.0,0.032259]
[1731208944549,0.36152,77461.0,77453.0,0.032259]
[1731208944860,0.3608,77461.0,77453.0,0.032259]
[1731208945354,0.3608,77461.0,77454.0,0.11356]
[1731208945594,0.3608,77461.0,77456.0,0.032258]
[1731208948073,0.3608,77461.0,77456.0,0.04782372]
[1731208948577,0.043,77472.0,77456.0,0.15072536]
[1731208948890,0.0867,77472.0,77459.0,0.032257]
[1731208950463,0.0867,77472.0,77458.0,0.03835395]
[1731208950671,0.0867,77472.0,77462.0,0.16741464]
[1731208950980,0.36152,77473.0,77462.0,0.49595964]
[1731208951277,0.3608,77479.0,77471.0,0.032252]
[1731208951473,0.3608,77479.0,77472.0,0.11356]
[1731208951676,0.3608,77479.0,77473.0,0.032251]
[1731208951880,0.3608,77479.0,77470.0,0.36204]
[1731208952071,0.3608,77479.0,77471.0,0.11356]
[1731208952672,0.3608,77479.0,77470.0,0.3608]
[1731208952923,0.3608,77479.0,77471.0,0.11356]
[1731208953384,0.032249,77478.0,77472.0,0.11356]
[1731208953572,0.032249,77478.0,77465.0,0.03835395]
[1731208953879,0.032251,77473.0,77465.0,0.03835395]
[1731208954087,0.032252,77472.0,77466.0,0.11356]
[1731208954879,0.3608,77470.0,77463.0,0.03835395]
[1731208955077,0.3608,77470.0,77446.0,0.3608]
[1731208955078,0.032255,77465.0,77464.0,0.11356]
[1731208956178,0.3608,77471.0,77464.0,0.11356]
[1731208956372,0.032252,77470.0,77464.0,0.11356]
[1731208959392,0.032252,77470.0,77464.0,0.15191395]
[1731208959974,0.3608,77471.0,77464.0,0.03835395]
[1731208959975,0.032254,77466.0,77464.0,0.03835395]
[1731208960276,0.0431,77465.0,77464.0,0.11356]
[1731208960477,0.0431,77465.0,77462.0,0.3608]
[1731208960478,0.032255,77464.0,77462.0,0.3608]
[1731208960788,0.032255,77464.0,77455.0,0.03835395]
[1731208960789,0.032256,77460.0,77455.0,0.03835395]
[1731208961086,0.032256,77460.0,77453.0,0.13938588]
[1731208961475,0.032256,77460.0,77453.0,0.02582588]
[1731208961678,0.032256,77460.0,77454.0,0.11356]
[1731208962897,0.032256,77460.0,77453.0,0.02582588]
[1731208963083,0.032256,77460.0,77454.0,0.11356]
[1731208966691,0.393056,77460.0,77454.0,0.11356]
[1731208967446,0.3608,77460.0,77454.0,0.11356]
[1731208967596,0.3608,77460.0,77455.0,0.53665964]
[1731208971689,0.3608,77460.0,77456.0,0.032258]
[1731208972199,0.3608,77460.0,77458.0,0.0511386]
[1731208972402,0.3608,77460.0,77459.0,0.0511386]
[1731208972694,0.3608,77460.0,77458.0,0.0511386]
[1731208973095,0.075355,77465.0,77458.0,0.0511386]
[1731208973296,0.075355,77465.0,77460.0,0.0511386]
[1731208973481,0.075355,77465.0,77459.0,0.0511386]
[1731208973686,0.40188,77475.0,77459.0,0.0511386]
[1731208973687,0.3608,77468.0,77459.0,0.0511386]
[1731208973885,0.3608,77468.0,77465.0,0.03844716]
[1731208974184,0.3608,77468.0,77465.0,0.15184716]
[1731208974393,0.3608,77468.0,77466.0,0.03844716]
[1731208974595,0.3608,77468.0,77465.0,0.1134]
[1731208974788,0.3608,77468.0,77460.0,0.0833946]
[1731208975097,0.3608,77468.0,77464.0,0.03845324]
[1731208975704,0.3608,77468.0,77465.0,0.03845324]
[1731208975901,0.3608,77468.0,77462.0,0.4119386]
[1731208975902,0.3608,77468.0,77466.0,0.03845324]
[1731208976096,0.436051,77474.0,77466.0,0.03845324]
[1731208976492,0.436051,77474.0,77469.0,0.03845324]
[1731208979303,0.436051,77474.0,77462.0,0.3608]
[1731208980599,0.03734172,77473.0,77462.0,0.3608]
[1731208980792,0.436731,77474.0,77462.0,0.3608]
[1731208981006,0.436051,77474.0,77462.0,0.3608]
[1731208981420,0.03735946,77473.0,77462.0,0.3608]
[1731208981606,0.436731,77474.0,77462.0,0.3608]
[1731208981800,0.436051,77474.0,77462.0,0.3608]
[1731208982402,0.03740141,77473.0,77463.0,0.032255]
[1731208982590,0.03740076,77472.0,77463.0,0.032255]
[1731208982803,0.436051,77474.0,77464.0,0.032254]
[1731208983500,0.03722114,77473.0,77464.0,0.032254]
[1731208983712,0.4038,77474.0,77462.0,0.3608]
[1731208984005,0.032252,77472.0,77462.0,0.3608]
[1731208986001,0.086625,77465.0,77459.0,0.02582301]
[1731208986206,0.086625,77465.0,77460.0,0.1134]
[1731208986396,0.086625,77465.0,77459.0,0.02582301]
[1731208986601,0.086625,77460.0,77456.0,0.1134]
[1731208986803,0.0857,77459.0,77456.0,0.1134]
[1731208987200,0.0857,77459.0,77457.0,0.03845324]
[1731208987419,0.0857,77459.0,77456.0,0.15185324]
[1731208987801,0.0857,77459.0,77456.0,0.1134]
[1731208988104,0.393057,77458.0,77456.0,0.1134]
[1731208988307,0.435957,77458.0,77456.0,0.1134]
[1731208989009,0.4037,77458.0,77453.0,0.03845324]
[1731208989212,0.4037,77458.0,77445.0,0.02582301]
[1731208989213,0.086625,77455.0,77454.0,0.03845324]
[1731208989406,0.032258,77456.0,77454.0,0.03845324]
[1731208992224,0.086625,77458.0,77452.0,0.03845324]
[1731208992410,0.447425,77453.0,77446.0,0.03845324]
[1731208992736,0.086625,77448.0,77444.0,0.03845324]
[1731208992911,0.393063,77446.0,77442.0,0.03845324]
[1731208993301,0.393063,77446.0,77441.0,0.03845324]
[1731208993603,0.393063,77446.0,77442.0,0.03845324]
[1731208993807,0.032264,77444.0,77442.0,0.03845324]
[1731208994009,0.084,77443.0,77442.0,0.03845324]
[1731208994203,0.084,77443.0,77438.0,0.03845324]
[1731208994411,0.084,77443.0,77441.0,0.086625]
[1731208995305,0.084,77443.0,77437.0,0.15185324]
[1731208995711,0.084,77443.0,77437.0,0.1134]
[1731208997012,0.3608,77439.0,77434.0,0.03845324]
[1731208997208,0.3608,77439.0,77431.0,0.03845324]
[1731208997423,0.084,77443.0,77431.0,0.03845324]
[1731208997615,0.084,77443.0,77432.0,0.03845324]
[1731208997809,0.084,77443.0,77434.0,0.3608]
[1731208998308,0.116264,77443.0,77436.0,0.03845324]
[1731208998619,0.116264,77443.0,77435.0,0.03845324]
[1731209000516,0.116264,77443.0,77434.0,0.39925324]
[1731209001418,0.032265,77440.0,77434.0,0.51249324]
[1731209001717,0.032265,77440.0,77434.0,0.11324]
[1731209002315,0.032265,77440.0,77436.0,0.0511386]
[1731209003416,0.032265,77440.0,77438.0,0.0384016]
[1731209004618,0.032265,77440.0,77437.0,0.0384016]
[1731209004815,0.032265,77440.0,77438.0,0.0384016]
[1731209006618,0.3608,77439.0,77438.0,0.0384016]
[1731209006812,0.3608,77439.0,77436.0,0.0384016]
[1731209007026,0.393066,77439.0,77436.0,0.0384016]
[1731209007520,0.032266,77437.0,77436.0,0.0384016]
[1731209007922,0.032266,77437.0,77427.0,0.00193701]
[1731209007923,0.032269,77430.0,77427.0,0.00193701]
[1731209008107,0.3608,77439.0,77427.0,0.05307561]
[1731209008108,0.032267,77434.0,77427.0,0.05307561]
[1731209008322,0.032268,77433.0,77427.0,0.05307561]
[1731209008520,0.032268,77432.0,77428.0,0.0511386]
[1731209008719,0.3608,77439.0,77427.0,0.05307561]
[1731209008720,0.032269,77431.0,77427.0,0.05307561]
[1731209008915,0.03227,77429.0,77427.0,0.05307561]
[1731209009318,0.03227,77429.0,77427.0,0.00193701]
[1731209009624,0.03227,77429.0,77427.0,0.05307561]
[1731209010616,0.03227,77429.0,77427.0,0.00193701]
[1731209010920,0.03227,77429.0,77427.0,0.05307561]
[1731209011717,0.01568173,77430.0,77427.0,0.05307561]
[1731209012422,0.3608,77432.0,77427.0,0.05307561]
[1731209012625,0.3608,77432.0,77428.0,0.0511386]
[1731209013122,0.3608,77432.0,77429.0,0.0511386]
[1731209013621,0.3608,77432.0,77427.0,0.36273701]
[1731209013622,0.3608,77432.0,77430.0,0.0511386]
[1731209014227,0.3608,77432.0,77431.0,0.0511386]
[1731209014415,0.393068,77432.0,77431.0,0.0511386]
[1731209014616,0.393068,77432.0,77430.0,0.11324]
[1731209015126,0.3608,77432.0,77427.0,0.42666026]
[1731209015328,0.3608,77432.0,77431.0,0.05126883]
[1731209015329,0.393068,77432.0,77431.0,0.05126883]
[1731209015518,0.393068,77432.0,77427.0,0.36273701]
[1731209016825,0.3608,77432.0,77427.0,0.42666026]
[1731209017020,0.3608,77432.0,77428.0,0.06392325]
[1731209017426,0.3608,77432.0,77428.0,0.0512856]
[1731209017609,0.3608,77432.0,77427.0,0.36273701]
[1731209017610,0.3608,77432.0,77429.0,0.0512856]
[1731209018126,0.3608,77456.0,77431.0,0.13501337]
[1731209018317,0.00193758,77464.0,77452.0,0.3608]
[1731209018318,0.032259,77455.0,77452.0,0.3608]
[1731209018529,0.032259,77455.0,77446.0,0.13501337]
[1731209018530,0.032259,77455.0,77449.0,0.11324]
[1731209021017,0.0428,77463.0,77449.0,0.11324]
[1731209021219,0.032256,77461.0,77449.0,0.11324]
[1731209022226,0.0428,77463.0,77449.0,0.11324]
[1731209022532,0.032257,77458.0,77449.0,0.11324]
[1731209023029,0.13501337,77453.0,77449.0,0.47404]
[1731209023524,0.13501337,77453.0,77449.0,0.3608]
[1731209023824,0.13501337,77453.0,77448.0,0.11324]
[1731209024030,0.03226,77452.0,77447.0,0.11324]
[1731209025824,0.49581337,77453.0,77447.0,0.11324]
[1731209026024,0.032263,77446.0,77438.0,0.05127834]
[1731209026218,0.13501337,77443.0,77442.0,0.11324]
[1731209027127,0.04,77445.0,77442.0,0.11324]
[1731209032032,0.032263,77444.0,77442.0,0.11324]
[1731209032235,0.04,77445.0,77433.0,0.41207834]
[1731209032437,0.032265,77441.0,77438.0,0.11304]
[1731209033833,0.032265,77441.0,77433.0,0.3608]
[1731209033834,0.032266,77437.0,77433.0,0.3608]
[1731209034030,0.13501337,77435.0,77433.0,0.3608]
[1731209034833,0.032268,77432.0,77427.0,0.11497701]
[1731209035434,0.032269,77431.0,77427.0,0.00193701]
[1731209035834,0.39307,77429.0,77427.0,0.00193701]
[1731209036429,0.03227,77429.0,77427.0,0.00193701]
[1731209038429,0.16728337,77429.0,77427.0,0.00193701]
[1731209038637,0.16728337,77429.0,77388.0,0.10271999]
[1731209038638,0.032274,77419.0,77406.0,0.05127834]
[1731209038930,0.13501337,77417.0,77404.0,0.05127834]
[1731209039142,0.13501337,77417.0,77403.0,0.05127834]
[1731209039339,0.13501337,77417.0,77416.0,0.05127834]
[1731209039657,0.13501337,77417.0,77413.0,0.05127834]
[1731209039936,0.13501337,77417.0,77404.0,0.07703999]
[1731209039937,0.032276,77414.0,77408.0,0.05127834]
[1731209040143,0.04,77413.0,77408.0,0.05127834]
[1731209040337,0.032277,77411.0,77408.0,0.05127834]
[1731209040537,0.032277,77411.0,77406.0,0.05127834]
[1731209040732,0.032277,77411.0,77407.0,0.05127834]
[1731209040945,0.032277,77411.0,77404.0,0.05127834]
[1731209041335,0.032277,77411.0,77405.0,0.05127834]
[1731209041849,0.032277,77411.0,77400.0,0.06392325]
[1731209041850,0.00068,77417.0,77407.0,0.54709171]
[1731209042147,0.393072,77424.0,77410.0,0.05127834]
[1731209042340,0.13501337,77423.0,77411.0,0.05127834]
[1731209042747,0.36148,77424.0,77414.0,0.41207834]
[1731209043051,0.3608,77424.0,77418.0,0.032274]
[1731209045953,0.0413,77436.0,77421.0,0.3608]
[1731209046246,0.032266,77438.0,77430.0,0.032269]
[1731209046647,0.13501337,77437.0,77430.0,0.032269]
[1731209049250,0.13501337,77437.0,77429.0,0.15578]
[1731209049446,0.13501337,77431.0,77429.0,0.15578]
[1731209051154,0.13501337,77431.0,77428.0,0.3608]
[1731209051349,0.13501337,77431.0,77424.0,0.16435834]
[1731209051665,0.13501337,77425.0,77424.0,0.11308]
[1731209052448,0.13501337,77425.0,77420.0,0.11308]
[1731209052849,0.13501337,77425.0,77420.0,0.16435834]
[1731209053055,0.13501337,77425.0,77421.0,0.05127834]
[1731209053558,0.13501337,77425.0,77422.0,0.05127834]
[1731209054147,0.13501337,77425.0,77423.0,0.05127834]
[1731209054449,0.13501337,77425.0,77420.0,0.11308]
[1731209056945,0.13501337,77425.0,77414.0,0.3608]
[1731209057146,0.13501337,77418.0,77409.0,0.041]
[1731209057356,0.13501337,77418.0,77410.0,0.11308]
[1731209057650,0.13501337,77411.0,77410.0,0.11308]
[1731209058656,0.13501337,77417.0,77410.0,0.11308]
[1731209059359,0.3608,77421.0,77410.0,0.11308]
[1731209059360,0.13501337,77411.0,77410.0,0.11308]
[1731209061186,0.13501337,77411.0,77403.0,0.01593097]
[1731209061863,0.13501337,77411.0,77402.0,0.14516]
[1731209062066,0.03228,77405.0,77394.0,0.032284]
[1731209062260,0.13501337,77395.0,77394.0,0.04797239]
[1731209062654,0.13501337,77395.0,77394.0,0.40877239]
[1731209062962,0.13501337,77395.0,77394.0,0.04797239]
[1731209063558,0.13501337,77395.0,77394.0,0.40877239]
[1731209067563,0.13501337,77401.0,77394.0,0.37648839]
[1731209067769,0.13577337,77407.0,77400.0,0.05130729]
[1731209067965,0.13501337,77407.0,77402.0,0.41210729]
[1731209069059,0.13501337,77407.0,77403.0,0.05130729]
[1731209069564,0.13501337,77407.0,77402.0,0.3608]
[1731209074778,0.032279,77406.0,77402.0,0.3608]
[1731209078173,0.032281,77401.0,77395.0,0.05130729]
[1731209078371,0.13501337,77400.0,77395.0,0.05130729]
[1731209078572,0.13501337,77400.0,77397.0,0.05130729]
[1731209079160,0.13501337,77400.0,77398.0,0.05130729]
[1731209079573,0.13501337,77400.0,77397.0,0.05130729]
[1731209080372,0.13501337,77400.0,77398.0,0.05130729]
[1731209081176,0.13501337,77400.0,77399.0,0.05130729]
[1731209081764,0.13501337,77400.0,77398.0,0.05130729]
[1731209081965,0.13501337,77400.0,77397.0,0.05130729]
[1731209082176,0.13501337,77400.0,77391.0,0.04807953]
[1731209082177,0.13501337,77400.0,77398.0,0.05130729]
[1731209082370,0.13501337,77399.0,77397.0,0.05130729]
[1731209082670,0.032283,77397.0,77394.0,0.05130729]
[1731209082876,0.032284,77395.0,77392.0,0.05130729]
[1731209083078,0.032284,77395.0,77391.0,0.16422729]
[1731209083280,0.032284,77395.0,77391.0,0.05130729]
[1731209084483,0.393084,77395.0,77391.0,0.05130729]
[1731209084775,0.52809737,77395.0,77387.0,0.3608]
[1731209085075,0.393084,77395.0,77387.0,0.3608]
[1731209085579,0.0824,77394.0,77387.0,0.3608]
[1731209086371,0.0824,77394.0,77379.0,0.05130729]
[1731209086372,0.032288,77385.0,77379.0,0.05130729]
[1731209088873,0.13501337,77381.0,77379.0,0.05130729]
[1731209089078,0.0986219,77394.0,77378.0,0.01573028]
[1731209089079,0.13501337,77387.0,77380.0,0.39309]
[1731209089273,0.13501337,77387.0,77381.0,0.05143537]
[1731209089482,0.13501337,77387.0,77383.0,0.032289]
[1731209089672,0.032285,77393.0,77381.0,0.05143537]
[1731209089878,0.13501337,77394.0,77386.0,0.032287]
[1731209090194,0.13501337,77394.0,77380.0,0.3608]
[1731209090195,0.13501337,77394.0,77387.0,0.59834237]
[1731209090594,0.13501337,77394.0,77388.0,0.05143537]
[1731209090773,0.13501337,77394.0,77387.0,0.59958237]
[1731209090987,0.13501337,77394.0,77387.0,0.59834237]
[1731209091274,0.13501337,77394.0,77388.0,0.05143537]
[1731209091678,0.13501337,77394.0,77390.0,0.06392325]
[1731209092478,0.13501337,77394.0,77387.0,0.548267]
[1731209092479,0.13501337,77394.0,77389.0,0.06392325]
[1731209092682,0.13501337,77394.0,77390.0,0.06392325]